[Event "Titled Tuesday Blitz April 18 Late 2023"]
[White "Rios Escobar, Adan"]
[Black "Kovacevic, Radmila"]
[WhiteFideId "3403645"]
[BlackFideId "933171"]
[WhiteElo "2496"]
[BlackElo "2194"]
[Result "0-1"]
[Round "05"]
[TimeControl "180+2"]
[Date "2023.04.18"]
[WhiteClock "0:00:02"]
[BlackClock "0:00:28"]

1. d4 {[%clk 0:03:00]}  e5 {[%clk 0:02:59]} 2. dxe5 {[%clk 0:03:00]}  Nc6 {[%clk 0:03:00]} 3. Nf3 {[%clk 0:03:01]}  Qe7 {[%clk 0:03:00]} 4. Bg5 {[%clk 0:03:00]}  Qb4+ {[%clk 0:03:00]} 5. Nc3 {[%clk 0:02:56]}  Qxb2 {[%clk 0:03:00]} 6. Bd2 {[%clk 0:02:57]}  Bb4 {[%clk 0:02:59]} 7. Rb1 {[%clk 0:02:57]}  Qxc3 {[%clk 0:02:59]} 8. Bxc3 {[%clk 0:02:56]}  Bxc3+ {[%clk 0:03:00]} 9. Nd2 {[%clk 0:02:57]}  Bxe5 {[%clk 0:03:01]} 10. e4 {[%clk 0:02:54]}  Nf6 {[%clk 0:03:00]} 11. Bc4 {[%clk 0:02:49]}  O-O {[%clk 0:02:57]} 12. O-O {[%clk 0:02:47]}  Bc3 {[%clk 0:02:53]} 13. Rb3 {[%clk 0:02:37]}  Ba5 {[%clk 0:02:53]} 14. Qe2 {[%clk 0:02:15]}  Nd4 {[%clk 0:02:51]} 15. Qd3 {[%clk 0:01:56]}  Nxb3 {[%clk 0:02:48]} 16. axb3 {[%clk 0:01:56]}  Bxd2 {[%clk 0:02:45]} 17. Qxd2 {[%clk 0:01:56]}  Nxe4 {[%clk 0:02:45]} 18. Qf4 {[%clk 0:01:53]}  Nd6 {[%clk 0:02:36]} 19. Bd5 {[%clk 0:01:51]}  Re8 {[%clk 0:02:26]} 20. c4 {[%clk 0:01:49]}  Re7 {[%clk 0:01:52]} 21. h4 {[%clk 0:01:42]}  Ne8 {[%clk 0:01:46]} 22. Rd1 {[%clk 0:01:37]}  c6 {[%clk 0:01:42]} 23. Bf3 {[%clk 0:01:31]}  d6 {[%clk 0:01:41]} 24. h5 {[%clk 0:01:29]}  h6 {[%clk 0:01:38]} 25. g4 {[%clk 0:01:25]}  f6 {[%clk 0:01:22]} 26. Be4 {[%clk 0:01:23]}  Be6 {[%clk 0:01:18]} 27. Bg6 {[%clk 0:01:20]}  Bf7 {[%clk 0:01:11]} 28. Bf5 {[%clk 0:01:18]}  Rd8 {[%clk 0:01:09]} 29. Qd2 {[%clk 0:00:57]}  d5 {[%clk 0:01:06]} 30. Qb4 {[%clk 0:00:47]}  Nd6 {[%clk 0:01:05]} 31. Bc2 {[%clk 0:00:26]}  Be6 {[%clk 0:00:59]} 32. Re1 {[%clk 0:00:25]}  dxc4 {[%clk 0:00:51]} 33. bxc4 {[%clk 0:00:20]}  Kf8 {[%clk 0:00:50]} 34. Bb3 {[%clk 0:00:07]}  b6 {[%clk 0:00:38]} 35. Qa3 {[%clk 0:00:03]}  Bxg4 {[%clk 0:00:34]} 36. Rxe7 {[%clk 0:00:02]}  Kxe7 {[%clk 0:00:35]} 37. Qxa7+ {[%clk 0:00:02]}  Rd7 {[%clk 0:00:34]} 38. Qxb6 {[%clk 0:00:03]}  Bf3 {[%clk 0:00:30]} 39. Qe3+ {[%clk 0:00:02]}  Be4 {[%clk 0:00:28]} 0-1


[Site "https://www.chess.com"]

[Event "Titled Tuesday Blitz April 18 Late 2023"]
[White "Winkels, Marcel"]
[Black "Mikhalsky, Vladimir"]
[WhiteFideId "1003887"]
[BlackFideId "14144352"]
[WhiteElo "1900"]
[BlackElo "2236"]
[Result "1/2-1/2"]
[Round "05"]
[TimeControl "180+2"]
[Date "2023.04.18"]
[WhiteClock "0:00:15"]
[BlackClock "0:00:10"]

1. d4 {[%clk 0:03:00]}  Nf6 {[%clk 0:02:58]} 2. Nc3 {[%clk 0:03:01]}  g6 {[%clk 0:02:58]} 3. Bf4 {[%clk 0:03:01]}  Bg7 {[%clk 0:02:57]} 4. e3 {[%clk 0:02:58]}  O-O {[%clk 0:02:58]} 5. h4 {[%clk 0:02:58]}  d6 {[%clk 0:02:50]} 6. h5 {[%clk 0:02:55]}  Nxh5 {[%clk 0:02:45]} 7. Rxh5 {[%clk 0:02:54]}  gxh5 {[%clk 0:02:46]} 8. Qxh5 {[%clk 0:02:54]}  e5 {[%clk 0:02:44]} 9. Bd3 {[%clk 0:02:45]}  f5 {[%clk 0:02:42]} 10. dxe5 {[%clk 0:02:37]}  dxe5 {[%clk 0:02:42]} 11. Bg5 {[%clk 0:02:35]}  Qe8 {[%clk 0:02:41]} 12. Qh4 {[%clk 0:02:32]}  e4 {[%clk 0:02:33]} 13. Bc4+ {[%clk 0:02:31]}  Be6 {[%clk 0:02:33]} 14. Bxe6+ {[%clk 0:02:27]}  Qxe6 {[%clk 0:02:32]} 15. Nge2 {[%clk 0:02:28]}  Nc6 {[%clk 0:02:15]} 16. O-O-O {[%clk 0:02:23]}  Nb4 {[%clk 0:02:09]} 17. Kb1 {[%clk 0:02:21]}  c6 {[%clk 0:01:59]} 18. Nf4 {[%clk 0:02:20]}  Qf7 {[%clk 0:01:52]} 19. Nfe2 {[%clk 0:02:09]}  a5 {[%clk 0:01:39]} 20. Be7 {[%clk 0:01:52]}  Rfe8 {[%clk 0:01:30]} 21. Bc5 {[%clk 0:01:51]}  Qf6 {[%clk 0:01:14]} 22. Qg3 {[%clk 0:01:47]}  Rad8 {[%clk 0:01:08]} 23. Bd4 {[%clk 0:01:45]}  Qg6 {[%clk 0:01:07]} 24. Bxg7 {[%clk 0:01:31]}  Rxd1+ {[%clk 0:00:59]} 25. Nxd1 {[%clk 0:01:28]}  Qxg7 {[%clk 0:00:49]} 26. Qh3 {[%clk 0:01:19]}  Qf7 {[%clk 0:00:47]} 27. Ndc3 {[%clk 0:01:17]}  Rd8 {[%clk 0:00:46]} 28. Ng3 {[%clk 0:01:13]}  Nd5 {[%clk 0:00:36]} 29. Nxf5 {[%clk 0:01:11]}  Nxc3+ {[%clk 0:00:32]} 30. bxc3 {[%clk 0:01:10]}  Kh8 {[%clk 0:00:31]} 31. g4 {[%clk 0:01:07]}  a4 {[%clk 0:00:28]} 32. Qh4 {[%clk 0:01:07]}  Rg8 {[%clk 0:00:20]} 33. Qg3 {[%clk 0:01:03]}  Re8 {[%clk 0:00:19]} 34. Kb2 {[%clk 0:01:00]}  Qd5 {[%clk 0:00:18]} 35. Qh4 {[%clk 0:00:56]}  Qb5+ {[%clk 0:00:18]} 36. Kc1 {[%clk 0:00:53]}  Qe5 {[%clk 0:00:17]} 37. Qh5 {[%clk 0:00:48]}  a3 {[%clk 0:00:16]} 38. Kd2 {[%clk 0:00:39]}  Rd8+ {[%clk 0:00:16]} 39. Ke2 {[%clk 0:00:38]}  Qxc3 {[%clk 0:00:16]} 40. Kf1 {[%clk 0:00:35]}  Qxc2 {[%clk 0:00:13]} 41. Qg5 {[%clk 0:00:35]}  Qd1+ {[%clk 0:00:13]} 42. Kg2 {[%clk 0:00:34]}  Qf3+ {[%clk 0:00:13]} 43. Kh2 {[%clk 0:00:21]}  Qxf2+ {[%clk 0:00:13]} 44. Kh3 {[%clk 0:00:22]}  Qf1+ {[%clk 0:00:12]} 45. Kg3 {[%clk 0:00:21]}  Qg1+ {[%clk 0:00:12]} 46. Kh3 {[%clk 0:00:20]}  Qh1+ {[%clk 0:00:12]} 47. Kg3 {[%clk 0:00:20]}  Qf3+ {[%clk 0:00:11]} 48. Kh4 {[%clk 0:00:17]}  Qf2+ {[%clk 0:00:10]} 49. Kh3 {[%clk 0:00:17]}  Qf1+ {[%clk 0:00:10]} 50. Kh4 {[%clk 0:00:16]}  Qh1+ {[%clk 0:00:10]} 51. Kg3 {[%clk 0:00:16]}  Qf3+ {[%clk 0:00:10]} 52. Kh4 {[%clk 0:00:15]}  Qf2+ {[%clk 0:00:10]} 53. Kh3 {[%clk 0:00:15]} 1/2-1/2


[Site "https://www.chess.com"]

[Event "Titled Tuesday Blitz April 18 Late 2023"]
[White "Vargas, Mauricio"]
[Black "Mickiewicz, Piotr"]
[WhiteFideId "4404572"]
[BlackFideId "1114891"]
[WhiteElo "1998"]
[BlackElo "2246"]
[Result "0-1"]
[Round "05"]
[TimeControl "180+2"]
[Date "2023.04.18"]
[WhiteClock "0:00:01"]
[BlackClock "0:00:16"]

1. e4 {[%clk 0:03:00]}  e5 {[%clk 0:02:58]} 2. Nf3 {[%clk 0:02:59]}  Nf6 {[%clk 0:02:59]} 3. Nxe5 {[%clk 0:02:57]}  d6 {[%clk 0:02:59]} 4. Nf3 {[%clk 0:02:57]}  Nxe4 {[%clk 0:03:00]} 5. Nc3 {[%clk 0:02:58]}  Nxc3 {[%clk 0:02:59]} 6. dxc3 {[%clk 0:02:58]}  Be7 {[%clk 0:02:59]} 7. Bf4 {[%clk 0:02:57]}  Nc6 {[%clk 0:03:00]} 8. Qd2 {[%clk 0:02:56]}  Be6 {[%clk 0:02:59]} 9. O-O-O {[%clk 0:02:56]}  Qd7 {[%clk 0:02:56]} 10. Kb1 {[%clk 0:02:44]}  a6 {[%clk 0:02:55]} 11. h4 {[%clk 0:02:18]}  f6 {[%clk 0:02:45]} 12. Bd3 {[%clk 0:02:13]}  O-O-O {[%clk 0:02:42]} 13. Rhe1 {[%clk 0:02:03]}  h5 {[%clk 0:02:37]} 14. Qe3 {[%clk 0:01:45]}  Bg4 {[%clk 0:02:26]} 15. Rd2 {[%clk 0:01:39]}  Bxf3 {[%clk 0:02:19]} 16. Qxf3 {[%clk 0:01:33]}  Kb8 {[%clk 0:02:09]} 17. Rde2 {[%clk 0:01:11]}  Ne5 {[%clk 0:02:04]} 18. Qg3 {[%clk 0:01:01]}  Bf8 {[%clk 0:01:51]} 19. Be4 {[%clk 0:00:38]}  Qb5 {[%clk 0:00:59]} 20. Be3 {[%clk 0:00:34]}  Nc4 {[%clk 0:00:54]} 21. Bc1 {[%clk 0:00:29]}  d5 {[%clk 0:00:52]} 22. Bd3 {[%clk 0:00:27]}  Qc6 {[%clk 0:00:49]} 23. Re6 {[%clk 0:00:21]}  Bd6 {[%clk 0:00:40]} 24. Qf3 {[%clk 0:00:18]}  Ne5 {[%clk 0:00:39]} 25. Qe2 {[%clk 0:00:11]}  Qd7 {[%clk 0:00:23]} 26. Bf5 {[%clk 0:00:05]}  Qa4 {[%clk 0:00:23]} 27. f4 {[%clk 0:00:01]}  Nc4 {[%clk 0:00:16]} 0-1


[Site "https://www.chess.com"]

[Event "Titled Tuesday Blitz April 18 Late 2023"]
[White "Klukin, Kirill"]
[Black "tandercat"]
[WhiteFideId "24199273"]
[WhiteElo "2344"]
[BlackElo "1975"]
[Result "1-0"]
[Round "05"]
[TimeControl "180+2"]
[Date "2023.04.18"]
[WhiteClock "0:00:26"]
[BlackClock "0:00:15"]

1. c4 {[%clk 0:03:00]}  c5 {[%clk 0:02:59]} 2. Nc3 {[%clk 0:03:00]}  g6 {[%clk 0:02:59]} 3. g3 {[%clk 0:03:01]}  Bg7 {[%clk 0:02:59]} 4. Bg2 {[%clk 0:03:01]}  Nc6 {[%clk 0:03:00]} 5. a3 {[%clk 0:03:01]}  a5 {[%clk 0:02:58]} 6. e3 {[%clk 0:03:00]}  d6 {[%clk 0:02:57]} 7. Nge2 {[%clk 0:03:00]}  e5 {[%clk 0:02:57]} 8. O-O {[%clk 0:03:00]}  Nge7 {[%clk 0:02:57]} 9. Rb1 {[%clk 0:03:00]}  O-O {[%clk 0:02:57]} 10. Nd5 {[%clk 0:02:57]}  Nxd5 {[%clk 0:02:48]} 11. cxd5 {[%clk 0:02:56]}  Ne7 {[%clk 0:02:48]} 12. b4 {[%clk 0:02:57]}  axb4 {[%clk 0:02:46]} 13. axb4 {[%clk 0:02:58]}  b6 {[%clk 0:02:45]} 14. bxc5 {[%clk 0:02:50]}  bxc5 {[%clk 0:02:44]} 15. d4 {[%clk 0:02:51]}  cxd4 {[%clk 0:02:32]} 16. exd4 {[%clk 0:02:50]}  Bg4 {[%clk 0:02:27]} 17. dxe5 {[%clk 0:02:47]}  Bxe5 {[%clk 0:02:21]} 18. h3 {[%clk 0:02:48]}  Bf5 {[%clk 0:02:13]} 19. Rb7 {[%clk 0:02:46]}  Rb8 {[%clk 0:02:06]} 20. Rxb8 {[%clk 0:02:42]}  Qxb8 {[%clk 0:02:07]} 21. Nd4 {[%clk 0:02:43]}  Bd7 {[%clk 0:02:03]} 22. Bg5 {[%clk 0:02:40]}  Nf5 {[%clk 0:01:56]} 23. Nc6 {[%clk 0:02:39]}  Qb6 {[%clk 0:01:39]} 24. Nxe5 {[%clk 0:02:17]}  dxe5 {[%clk 0:01:35]} 25. Kh2 {[%clk 0:02:13]}  f6 {[%clk 0:01:28]} 26. Bc1 {[%clk 0:02:08]}  Kg7 {[%clk 0:01:27]} 27. f4 {[%clk 0:02:02]}  exf4 {[%clk 0:01:17]} 28. Bxf4 {[%clk 0:02:00]}  Re8 {[%clk 0:01:08]} 29. Qd2 {[%clk 0:01:59]}  Ne3 {[%clk 0:01:03]} 30. Rf2 {[%clk 0:00:56]}  Nxg2 {[%clk 0:00:51]} 31. Kxg2 {[%clk 0:00:55]}  Bf5 {[%clk 0:00:49]} 32. d6 {[%clk 0:00:43]}  Qc6+ {[%clk 0:00:37]} 33. Kh2 {[%clk 0:00:38]}  Ra8 {[%clk 0:00:30]} 34. g4 {[%clk 0:00:36]}  Bd7 {[%clk 0:00:29]} 35. Bh6+ {[%clk 0:00:30]}  Kf7 {[%clk 0:00:26]} 36. Qd4 {[%clk 0:00:27]}  f5 {[%clk 0:00:16]} 37. Qg7+ {[%clk 0:00:25]}  Ke6 {[%clk 0:00:15]} 38. Re2+ {[%clk 0:00:26]}  Kxd6 {[%clk 0:00:15]} 39. Qe5# {[%clk 0:00:26]} 1-0


[Site "https://www.chess.com"]

[Event "Titled Tuesday Blitz April 18 Late 2023"]
[White "Urbina Perez, Juan Antonio"]
[Black "Gubajdullin, Alexei"]
[WhiteFideId "2217368"]
[BlackFideId "4141202"]
[WhiteElo "2197"]
[BlackElo "2279"]
[Result "0-1"]
[Round "05"]
[TimeControl "180+2"]
[Date "2023.04.18"]
[WhiteClock "0:00:03"]
[BlackClock "0:00:11"]

1. d4 {[%clk 0:02:52]}  Nf6 {[%clk 0:02:58]} 2. Nf3 {[%clk 0:02:52]}  g6 {[%clk 0:02:58]} 3. g3 {[%clk 0:02:52]}  Bg7 {[%clk 0:02:59]} 4. Bg2 {[%clk 0:02:53]}  O-O {[%clk 0:03:00]} 5. O-O {[%clk 0:02:54]}  d6 {[%clk 0:03:00]} 6. Nc3 {[%clk 0:02:54]}  Nbd7 {[%clk 0:02:58]} 7. e4 {[%clk 0:02:54]}  Rb8 {[%clk 0:02:58]} 8. a4 {[%clk 0:02:53]}  c5 {[%clk 0:02:58]} 9. Re1 {[%clk 0:02:52]}  b6 {[%clk 0:02:56]} 10. h3 {[%clk 0:02:50]}  cxd4 {[%clk 0:02:55]} 11. Nxd4 {[%clk 0:02:50]}  Bb7 {[%clk 0:02:56]} 12. Bg5 {[%clk 0:02:39]}  a6 {[%clk 0:02:54]} 13. Qd2 {[%clk 0:02:38]}  Re8 {[%clk 0:02:53]} 14. Nd5 {[%clk 0:02:29]}  Rc8 {[%clk 0:02:44]} 15. c3 {[%clk 0:02:24]}  e6 {[%clk 0:02:36]} 16. Nxf6+ {[%clk 0:02:14]}  Bxf6 {[%clk 0:02:36]} 17. Bxf6 {[%clk 0:02:12]}  Qxf6 {[%clk 0:02:35]} 18. h4 {[%clk 0:02:09]}  Ne5 {[%clk 0:02:34]} 19. Rad1 {[%clk 0:01:59]}  d5 {[%clk 0:02:28]} 20. exd5 {[%clk 0:01:53]}  Bxd5 {[%clk 0:02:29]} 21. Bxd5 {[%clk 0:01:52]}  exd5 {[%clk 0:02:28]} 22. Kg2 {[%clk 0:01:51]}  Re7 {[%clk 0:02:19]} 23. Re2 {[%clk 0:01:40]}  Rce8 {[%clk 0:02:18]} 24. Rde1 {[%clk 0:01:40]}  Nc4 {[%clk 0:02:14]} 25. Qc2 {[%clk 0:01:31]}  Re4 {[%clk 0:02:09]} 26. Rxe4 {[%clk 0:01:26]}  dxe4 {[%clk 0:02:08]} 27. b3 {[%clk 0:01:19]}  Nd6 {[%clk 0:02:07]} 28. Re3 {[%clk 0:01:13]}  b5 {[%clk 0:02:03]} 29. axb5 {[%clk 0:01:12]}  axb5 {[%clk 0:02:03]} 30. Qe2 {[%clk 0:01:11]}  b4 {[%clk 0:02:02]} 31. Qd2 {[%clk 0:00:44]}  bxc3 {[%clk 0:01:57]} 32. Qxc3 {[%clk 0:00:44]}  Rc8 {[%clk 0:01:55]} 33. Qb4 {[%clk 0:00:39]}  Qe5 {[%clk 0:01:42]} 34. Qb6 {[%clk 0:00:31]}  Qd5 {[%clk 0:01:41]} 35. Ne2 {[%clk 0:00:23]}  Nf5 {[%clk 0:01:37]} 36. Nf4 {[%clk 0:00:17]}  Nxe3+ {[%clk 0:01:35]} 37. Qxe3 {[%clk 0:00:18]}  Qb7 {[%clk 0:01:25]} 38. Kh2 {[%clk 0:00:17]}  Rc2 {[%clk 0:01:22]} 39. Qd4 {[%clk 0:00:17]}  Qxb3 {[%clk 0:00:54]} 40. Qd8+ {[%clk 0:00:13]}  Kg7 {[%clk 0:00:54]} 41. Qd4+ {[%clk 0:00:11]}  f6 {[%clk 0:00:54]} 42. Qd7+ {[%clk 0:00:09]}  Kh6 {[%clk 0:00:27]} 43. Ne6 {[%clk 0:00:09]}  Kh5 {[%clk 0:00:12]} 44. Qxh7+ {[%clk 0:00:06]}  Kg4 {[%clk 0:00:12]} 45. Qxg6+ {[%clk 0:00:07]}  Kf3 {[%clk 0:00:12]} 46. Qf5+ {[%clk 0:00:05]}  Ke2 {[%clk 0:00:11]} 47. Nd4+ {[%clk 0:00:05]}  Ke1 {[%clk 0:00:11]} 48. Nxb3 {[%clk 0:00:05]}  Rxf2+ {[%clk 0:00:12]} 49. Kh3 {[%clk 0:00:05]}  Rxf5 {[%clk 0:00:12]} 50. Nd4 {[%clk 0:00:04]}  Rd5 {[%clk 0:00:11]} 51. Nc2+ {[%clk 0:00:03]}  Kf2 {[%clk 0:00:11]} 52. Nb4 {[%clk 0:00:03]}  Rd2 {[%clk 0:00:11]} 0-1


[Site "https://www.chess.com"]

[Event "Titled Tuesday Blitz April 18 Late 2023"]
[White "Lopez Gracia, Fernando"]
[Black "Gonzalez Zamora, Juan Carlos"]
[WhiteFideId "2207184"]
[BlackFideId "3507548"]
[WhiteElo "2533"]
[BlackElo "2535"]
[Result "0-1"]
[Round "05"]
[TimeControl "180+2"]
[Date "2023.04.18"]
[WhiteClock "0:01:26"]
[BlackClock "0:00:50"]

1. c4 {[%clk 0:03:00]}  d6 {[%clk 0:02:56]} 2. Nf3 {[%clk 0:02:58]}  Nf6 {[%clk 0:02:55]} 3. Nc3 {[%clk 0:02:58]}  e5 {[%clk 0:02:53]} 4. d4 {[%clk 0:02:57]}  Nbd7 {[%clk 0:02:53]} 5. e4 {[%clk 0:02:56]}  Be7 {[%clk 0:02:53]} 6. Be2 {[%clk 0:02:56]}  O-O {[%clk 0:02:52]} 7. O-O {[%clk 0:02:57]}  Re8 {[%clk 0:02:50]} 8. Qc2 {[%clk 0:02:57]}  c6 {[%clk 0:02:49]} 9. Rd1 {[%clk 0:02:58]}  Qc7 {[%clk 0:02:49]} 10. b3 {[%clk 0:02:56]}  Nf8 {[%clk 0:02:44]} 11. Ba3 {[%clk 0:02:55]}  Ng6 {[%clk 0:02:43]} 12. dxe5 {[%clk 0:02:55]}  dxe5 {[%clk 0:02:42]} 13. Bxe7 {[%clk 0:02:55]}  Qxe7 {[%clk 0:02:40]} 14. Bf1 {[%clk 0:02:56]}  Bg4 {[%clk 0:02:39]} 15. Rd3 {[%clk 0:02:46]}  Nf4 {[%clk 0:02:29]} 16. Re3 {[%clk 0:02:46]}  Rad8 {[%clk 0:02:27]} 17. h3 {[%clk 0:02:46]}  Bxf3 {[%clk 0:02:12]} 18. Rxf3 {[%clk 0:02:46]}  Ne6 {[%clk 0:02:13]} 19. Ne2 {[%clk 0:02:44]}  Nd4 {[%clk 0:02:10]} 20. Nxd4 {[%clk 0:02:43]}  exd4 {[%clk 0:02:04]} 21. Bd3 {[%clk 0:02:44]}  Nd7 {[%clk 0:02:03]} 22. Rg3 {[%clk 0:02:38]}  Ne5 {[%clk 0:02:00]} 23. Re1 {[%clk 0:02:39]}  Qf6 {[%clk 0:01:53]} 24. Qd2 {[%clk 0:02:34]}  Ng6 {[%clk 0:01:51]} 25. Rf3 {[%clk 0:02:20]}  Qh4 {[%clk 0:01:40]} 26. e5 {[%clk 0:02:03]}  Rxe5 {[%clk 0:01:18]} 27. Bxg6 {[%clk 0:01:53]}  Rxe1+ {[%clk 0:01:16]} 28. Qxe1 {[%clk 0:01:54]}  hxg6 {[%clk 0:01:15]} 29. Qe2 {[%clk 0:01:47]}  Qg5 {[%clk 0:01:07]} 30. Kh2 {[%clk 0:01:44]}  Qc5 {[%clk 0:01:01]} 31. Qe4 {[%clk 0:01:40]}  Qd6+ {[%clk 0:01:00]} 32. Kg1 {[%clk 0:01:30]}  d3 {[%clk 0:01:00]} 33. c5 {[%clk 0:01:28]}  Qd5 {[%clk 0:00:55]} 34. Qe1 {[%clk 0:01:26]}  d2 {[%clk 0:00:50]} 35. Qd1 {[%clk 0:01:26]}  Qxc5 {[%clk 0:00:50]} 0-1


[Site "https://www.chess.com"]

[Event "Titled Tuesday Blitz April 18 Late 2023"]
[White "koncheto"]
[Black "Schuster, Karsten"]
[BlackFideId "4611071"]
[WhiteElo "2519"]
[BlackElo "2294"]
[Result "1-0"]
[Round "05"]
[TimeControl "180+2"]
[Date "2023.04.18"]
[WhiteClock "0:01:11"]
[BlackClock "0:00:02"]

1. e4 {[%clk 0:03:00]}  d5 {[%clk 0:02:59]} 2. exd5 {[%clk 0:02:59]}  Qxd5 {[%clk 0:03:00]} 3. Nc3 {[%clk 0:02:59]}  Qd6 {[%clk 0:02:59]} 4. d4 {[%clk 0:02:59]}  c6 {[%clk 0:03:00]} 5. Nf3 {[%clk 0:02:59]}  Bg4 {[%clk 0:02:58]} 6. g3 {[%clk 0:02:59]}  Nf6 {[%clk 0:02:56]} 7. Bg2 {[%clk 0:02:58]}  e6 {[%clk 0:02:56]} 8. O-O {[%clk 0:02:58]}  Qc7 {[%clk 0:02:55]} 9. Re1 {[%clk 0:02:57]}  Bd6 {[%clk 0:02:53]} 10. Qd3 {[%clk 0:02:51]}  Bf5 {[%clk 0:02:50]} 11. Qxf5 {[%clk 0:02:51]}  O-O {[%clk 0:02:46]} 12. Qd3 {[%clk 0:02:47]}  Nbd7 {[%clk 0:02:46]} 13. Ne4 {[%clk 0:02:45]}  Nxe4 {[%clk 0:02:43]} 14. Qxe4 {[%clk 0:02:46]}  Rad8 {[%clk 0:02:42]} 15. Ng5 {[%clk 0:02:28]}  Nf6 {[%clk 0:02:42]} 16. Qh4 {[%clk 0:02:26]}  h6 {[%clk 0:02:41]} 17. Ne4 {[%clk 0:02:25]}  Nxe4 {[%clk 0:02:37]} 18. Bxe4 {[%clk 0:02:10]}  Be7 {[%clk 0:02:36]} 19. Qf4 {[%clk 0:02:09]}  Bd6 {[%clk 0:02:21]} 20. Qf3 {[%clk 0:02:07]}  Qb6 {[%clk 0:02:16]} 21. c3 {[%clk 0:02:05]}  Rde8 {[%clk 0:02:14]} 22. Bc2 {[%clk 0:01:58]}  f5 {[%clk 0:02:12]} 23. b3 {[%clk 0:01:54]}  Rf6 {[%clk 0:02:00]} 24. Be3 {[%clk 0:01:46]}  Qa5 {[%clk 0:01:57]} 25. c4 {[%clk 0:01:45]}  Qc7 {[%clk 0:01:54]} 26. Bd2 {[%clk 0:01:39]}  Ref8 {[%clk 0:01:48]} 27. Qh5 {[%clk 0:01:33]}  e5 {[%clk 0:00:12]} 28. dxe5 {[%clk 0:01:23]}  Bxe5 {[%clk 0:00:12]} 29. Rad1 {[%clk 0:01:22]}  f4 {[%clk 0:00:10]} 30. Qxe5 {[%clk 0:01:20]}  fxg3 {[%clk 0:00:06]} 31. Qxc7 {[%clk 0:01:14]}  gxf2+ {[%clk 0:00:06]} 32. Kg2 {[%clk 0:01:12]}  Rg6+ {[%clk 0:00:02]} 33. Bxg6 {[%clk 0:01:11]} 1-0


[Site "https://www.chess.com"]

[Event "Titled Tuesday Blitz April 18 Late 2023"]
[White "Przybylski, Wojciech"]
[Black "Fajdetic, Hrvoje"]
[WhiteFideId "1117599"]
[BlackFideId "14501945"]
[WhiteElo "2222"]
[BlackElo "2185"]
[Result "1-0"]
[Round "05"]
[TimeControl "180+2"]
[Date "2023.04.18"]
[WhiteClock "0:00:09"]
[BlackClock "0:00:09"]

1. e4 {[%clk 0:03:00]}  e6 {[%clk 0:02:57]} 2. d4 {[%clk 0:02:56]}  d5 {[%clk 0:02:57]} 3. Nc3 {[%clk 0:02:55]}  dxe4 {[%clk 0:02:57]} 4. Nxe4 {[%clk 0:02:54]}  Nd7 {[%clk 0:02:58]} 5. Nf3 {[%clk 0:02:52]}  Ngf6 {[%clk 0:02:57]} 6. Ned2 {[%clk 0:02:52]}  c5 {[%clk 0:02:56]} 7. Bd3 {[%clk 0:02:49]}  cxd4 {[%clk 0:02:56]} 8. Nxd4 {[%clk 0:02:48]}  Bc5 {[%clk 0:02:56]} 9. N2b3 {[%clk 0:02:47]}  Bb6 {[%clk 0:02:52]} 10. O-O {[%clk 0:02:47]}  O-O {[%clk 0:02:52]} 11. Re1 {[%clk 0:02:46]}  h6 {[%clk 0:02:46]} 12. c3 {[%clk 0:02:45]}  a6 {[%clk 0:02:37]} 13. Qf3 {[%clk 0:02:24]}  Nc5 {[%clk 0:02:33]} 14. Nxc5 {[%clk 0:02:11]}  Bxc5 {[%clk 0:02:34]} 15. Be3 {[%clk 0:02:11]}  Be7 {[%clk 0:01:58]} 16. Rad1 {[%clk 0:02:08]}  Qa5 {[%clk 0:01:48]} 17. a3 {[%clk 0:02:04]}  Qh5 {[%clk 0:01:38]} 18. Qxh5 {[%clk 0:01:59]}  Nxh5 {[%clk 0:01:39]} 19. Nf3 {[%clk 0:01:55]}  Nf6 {[%clk 0:01:20]} 20. Ne5 {[%clk 0:01:55]}  Nd5 {[%clk 0:01:17]} 21. Bd4 {[%clk 0:01:51]}  Bf6 {[%clk 0:01:11]} 22. g3 {[%clk 0:01:47]}  b5 {[%clk 0:01:01]} 23. Be4 {[%clk 0:01:44]}  Bxe5 {[%clk 0:00:56]} 24. Bxe5 {[%clk 0:01:40]}  Bb7 {[%clk 0:00:55]} 25. b3 {[%clk 0:01:37]}  Rac8 {[%clk 0:00:52]} 26. Rc1 {[%clk 0:01:34]}  Ba8 {[%clk 0:00:43]} 27. c4 {[%clk 0:01:30]}  bxc4 {[%clk 0:00:44]} 28. bxc4 {[%clk 0:01:30]}  Nb6 {[%clk 0:00:38]} 29. Bd3 {[%clk 0:01:30]}  Rfd8 {[%clk 0:00:34]} 30. Bf1 {[%clk 0:01:21]}  Nd7 {[%clk 0:00:21]} 31. Bd6 {[%clk 0:01:08]}  Nc5 {[%clk 0:00:20]} 32. Red1 {[%clk 0:01:06]}  Ne4 {[%clk 0:00:18]} 33. Be7 {[%clk 0:01:03]}  Rxd1 {[%clk 0:00:18]} 34. Rxd1 {[%clk 0:01:02]}  f6 {[%clk 0:00:13]} 35. h4 {[%clk 0:00:58]}  Kf7 {[%clk 0:00:12]} 36. Bb4 {[%clk 0:00:56]}  Bc6 {[%clk 0:00:11]} 37. c5 {[%clk 0:00:34]}  Ra8 {[%clk 0:00:07]} 38. Ba5 {[%clk 0:00:26]}  Bd5 {[%clk 0:00:07]} 39. Rc1 {[%clk 0:00:24]}  Bc6 {[%clk 0:00:06]} 40. Bg2 {[%clk 0:00:23]}  f5 {[%clk 0:00:05]} 41. Rb1 {[%clk 0:00:18]}  Rc8 {[%clk 0:00:05]} 42. Bb6 {[%clk 0:00:15]}  g5 {[%clk 0:00:04]} 43. h5 {[%clk 0:00:14]}  Nd2 {[%clk 0:00:03]} 44. Rd1 {[%clk 0:00:13]}  Nf3+ {[%clk 0:00:03]} 45. Bxf3 {[%clk 0:00:10]}  Bxf3 {[%clk 0:00:02]} 46. Rd7+ {[%clk 0:00:10]}  Ke8 {[%clk 0:00:03]} 47. Rd3 {[%clk 0:00:07]}  Be4 {[%clk 0:00:03]} 48. Rc3 {[%clk 0:00:06]}  Rc6 {[%clk 0:00:02]} 49. f3 {[%clk 0:00:06]}  Bd5 {[%clk 0:00:02]} 50. Kf2 {[%clk 0:00:06]}  Kf7 {[%clk 0:00:02]} 51. g4 {[%clk 0:00:06]}  e5 {[%clk 0:00:02]} 52. Rd3 {[%clk 0:00:06]}  Kf6 {[%clk 0:00:03]} 53. Rxd5 {[%clk 0:00:06]}  e4 {[%clk 0:00:04]} 54. fxe4 {[%clk 0:00:06]}  f4 {[%clk 0:00:04]} 55. Rf5+ {[%clk 0:00:05]}  Ke6 {[%clk 0:00:04]} 56. Kf3 {[%clk 0:00:06]}  Ke7 {[%clk 0:00:04]} 57. Re5+ {[%clk 0:00:06]}  Re6 {[%clk 0:00:04]} 58. Rxe6+ {[%clk 0:00:05]}  Kxe6 {[%clk 0:00:05]} 59. c6 {[%clk 0:00:06]}  Kd6 {[%clk 0:00:05]} 60. c7 {[%clk 0:00:06]}  Kd7 {[%clk 0:00:06]} 61. e5 {[%clk 0:00:07]}  Kc8 {[%clk 0:00:07]} 62. e6 {[%clk 0:00:07]}  a5 {[%clk 0:00:07]} 63. e7 {[%clk 0:00:07]}  Kd7 {[%clk 0:00:08]} 64. e8=Q+ {[%clk 0:00:07]}  Kxe8 {[%clk 0:00:09]} 65. c8=Q+ {[%clk 0:00:07]}  Kf7 {[%clk 0:00:09]} 66. Qd7+ {[%clk 0:00:08]}  Kf8 {[%clk 0:00:09]} 67. Bc5+ {[%clk 0:00:08]}  Kg8 {[%clk 0:00:10]} 68. Bd4 {[%clk 0:00:08]}  Kf8 {[%clk 0:00:09]} 69. Bf6 {[%clk 0:00:08]}  a4 {[%clk 0:00:08]} 70. Qe7+ {[%clk 0:00:08]}  Kg8 {[%clk 0:00:09]} 71. Qg7# {[%clk 0:00:09]} 1-0


[Site "https://www.chess.com"]